fUST/lending_fUST_20240130
["ID","MTS","AMOUNT","RATE_DAILY","PERIOD"]
[313013049,1706618091998,-2224.57,0.0002969,3]
[313013050,1706618092024,-305.0682338,0.00029698,2]
[313013051,1706618092051,-500.0,0.00029698,2]
[313013052,1706618092077,-171.04644972,0.00029698,2]
[313013053,1706618092104,-1209.59402816,0.00029698,2]
[313013054,1706618092133,-161.63353296,0.00029698,2]
[313013055,1706618092164,-619.59735212,0.00029698,2]
[313013056,1706618092191,-425.78813284,0.00029698,2]
[313013057,1706618092214,-643.63004342,0.00029698,2]
[313013058,1706618092237,-727.84726779,0.00029698,2]
[313013059,1706618092264,-701.99090682,0.00029698,2]
[313013060,1706618092290,-669.49520294,0.00029699,2]
[313013061,1706618092313,-3605.4271203,0.00029699,2]
[313013062,1706618092338,-53470.64316449,0.000297,2]
[313013067,1706618170479,-1295.2641633,0.00026724,2]
[313013068,1706618170502,-302.3601781,0.00026725,2]
[313013069,1706618170522,-1243.97055445,0.00026725,2]
[313013070,1706618170544,-527.38076305,0.00026725,2]
[313013071,1706618170565,-1027.59488469,0.00026726,2]
[313013072,1706618170586,-494.9489016,0.00026726,2]
[313013073,1706618170609,-19726.57954333,0.00026726,2]
[313013074,1706618170632,-2392.90101148,0.00026727,2]
[313013079,1706618245924,-1934.0,0.00026722,2]
[313013143,1706619032266,-165.99896596,0.00026493,2]
[313013144,1706619032276,-158.95416117,0.00026494,2]
[313013145,1706619032285,-1318.55657631,0.00026592,2]
[313013146,1706619032297,-167.30861363,0.00026592,2]
[313013147,1706619032307,-972.57186694,0.00026592,2]
[313013260,1706619038967,-770.76173961,0.00026592,2]
[313013262,1706619038977,-494.9489016,0.00026593,2]
[313013264,1706619038986,-3750.33849076,0.00026593,2]
[313013266,1706619038995,-2055.17614731,0.00026602,2]
[313013268,1706619039005,-280.11858007,0.00026722,2]
[313013270,1706619039014,-1650.19411677,0.00026722,2]
[313013272,1706619039024,-300.0,0.00026722,2]
[313013274,1706619039033,-765.0593475,0.00026722,2]
[313013275,1706619039042,-978.95259375,0.00026728,2]
[313013277,1706619039051,-645.17588398,0.000276,2]
[313013278,1706619039061,-272.593128,0.00027672,2]
[313013279,1706619039070,-158.95416115,0.00028046,2]
[313013280,1706619039079,-155.0,0.00028789,2]
[313013281,1706619039088,-199.5795051,0.00028878,2]
[313013282,1706619039097,-199.5795051,0.00028878,2]
[313013283,1706619039107,-153.0,0.00028878,2]
[313013284,1706619039117,-199.5795051,0.00028878,2]
[313013285,1706619039126,-199.5795051,0.00028878,2]
[313013286,1706619039135,-153.0,0.00028878,2]
[313013287,1706619039144,-199.5795051,0.00028878,2]
[313013288,1706619039153,-199.5795051,0.00028878,2]
[313013290,1706619039163,-157.50269797,0.00029,2]
[313013292,1706619039172,-153.0,0.00029,2]
[313013293,1706619039183,-199.5795051,0.00029,2]
[313013294,1706619039192,-1934.46924266,0.00029,2]
[313013295,1706619039201,-199.5795051,0.00029178,2]
[313013296,1706619039211,-153.0,0.00029178,2]
[313013297,1706619039220,-200.0,0.00029252,15]
[313013298,1706619039229,-158.95416115,0.00029598,2]
[313013299,1706619039238,-11408.06645078,0.000296,2]
[313013300,1706619039247,-1151.54,0.00029687,3]
[313013301,1706619039257,-2195.92,0.00029687,3]
[313013302,1706619039266,-1297.83803101,0.00029696,2]
[313013303,1706619039276,-1243.25365727,0.00029696,2]
[313013304,1706619039286,-302.1336267,0.00029696,2]
[313013305,1706619039296,-616.71764054,0.00029696,2]
[313013306,1706619039305,-1026.87016455,0.00029696,2]
[313013307,1706619039314,-155.01085076,0.00029696,2]
[313013308,1706619039324,-155.01085076,0.00029696,2]
[313013309,1706619039332,-155.01085076,0.00029696,2]
[313013310,1706619039341,-8841.0531437,0.00029696,2]
[313013351,1706619043111,-2337.63320652,0.00029696,2]
[313013391,1706619043612,-199.5795051,0.00029178,2]
[313013392,1706619043622,-129.89346113,0.00029696,2]
[313013393,1706619043634,-495.23057395,0.00029696,2]
[313013394,1706619043691,-3810.31887461,0.00029696,2]
[313013398,1706619043702,-2760.18216831,0.00029696,2]
[313013401,1706619043712,-13611.27698227,0.00029697,2]
[313013407,1706619043726,-6102.80035052,0.00029697,2]
[313013410,1706619043736,-78.49263013,0.00029698,2]
[313013432,1706619049045,-0.77402379,0.00029696,2]
[313013444,1706619165294,-1650.19411677,0.00026722,2]
[313013445,1706619165315,-300.0,0.00026722,2]
[313013446,1706619165338,-1485.86518994,0.00027596,2]
[313013447,1706619165359,-400.94069329,0.00027597,2]
[313013452,1706619232952,731.30464745,0.0001631,2]
[313013456,1706619236543,-161.25377487,0.00027596,2]
[313013457,1706619236563,-907.74622513,0.00027596,2]
[313013470,1706619302405,-620.23996484,0.00027593,2]
[313013471,1706619302426,-3750.33849076,0.00027593,2]
[313013472,1706619302447,-942.4215444,0.00027594,2]
[313013475,1706619375288,-165.99896596,0.00027589,2]
[313013476,1706619375309,-4728.00103404,0.0002759,2]
[313013597,1706620238518,-165.99896596,0.0002733,2]
[313013599,1706620238527,-1175.22734264,0.00027331,2]
[313013650,1706620243068,-310.6378473,0.00027331,2]
[313013651,1706620243080,-3201.21443571,0.00027332,2]
[313013653,1706620243091,-1268.1520969,0.00027332,2]
[313013654,1706620243102,-1953.26916036,0.00027332,2]
[313013655,1706620243114,-6399.583807,0.00027332,2]
[313013664,1706620243688,-514.02736301,0.00027332,2]
[313013665,1706620243702,-5591.10614677,0.00027332,2]
[313013666,1706620243712,-4703.3775049,0.00027333,2]
[313013667,1706620243723,-3132.93867192,0.00027587,2]
[313013668,1706620243733,-1017.34138224,0.00027589,2]
[313013669,1706620243742,-765.0593475,0.0002759,2]
[313013671,1706620243752,-280.11858007,0.0002759,2]
[313013673,1706620243762,-1560.67611476,0.00027591,2]
[313013675,1706620243772,-296.47035823,0.00027597,2]
[313013677,1706620243781,-155.0,0.000286,2]
[313013678,1706620243791,-1934.46924266,0.00029,2]
[313013680,1706620243800,-277.76,0.000295,4]
[313013682,1706620243810,-2127.70102323,0.0002959,3]
[313013705,1706620246734,-0.64463166,0.0002959,3]
[313015163,1706620820364,10000.0,0.00029,30]
[313015164,1706620826532,10000.0,0.00029,30]
[313015165,1706620832123,10000.0,0.00029,30]
[313015166,1706620842902,10000.0,0.00029,30]
[313015167,1706620848951,10000.0,0.00029,30]
[313015168,1706620853727,10000.0,0.00029,30]
[313015169,1706620858722,10000.0,0.00029,30]
[313015170,1706620865743,10000.0,0.00029,30]
[313015176,1706620906933,10000.0,0.00029,30]
[313015177,1706620912916,10000.0,0.00029,30]
[313015183,1706621020342,10000.0,0.00029,30]
[313015184,1706621027443,10000.0,0.00029,30]
[313015185,1706621032585,10000.0,0.00029,30]
[313015186,1706621037169,10000.0,0.00029,30]
[313015187,1706621044756,10000.0,0.00029,30]
[313015188,1706621050008,10000.0,0.00029,30]
[313015189,1706621055097,10000.0,0.00029,30]
[313015190,1706621060262,10000.0,0.00029,30]
[313015191,1706621065573,10000.0,0.00029,30]
[313015192,1706621079193,6593.91,0.00029,30]
[313015237,1706621267294,-167.24069426,0.00026627,2]
[313015238,1706621267315,-1856.95377279,0.00026627,2]
[313015239,1706621267335,-1485.86518994,0.00026628,2]
[313015240,1706621267356,-4774.94034301,0.00026629,2]
[313015244,1706621337612,-155.0294556,0.00026625,2]
[313015245,1706621337638,-262.71950685,0.00026625,2]
[313015246,1706621337660,-3490.39781052,0.00026625,2]
[313015247,1706621337681,-3326.84002864,0.00026625,2]
[313015248,1706621337702,-639.41153281,0.00026626,2]
[313015249,1706621337724,-500.0,0.00026626,2]
[313015250,1706621337746,-620.23996484,0.00026627,2]
[313015251,1706621337767,-165.99896596,0.00026628,2]
[313015252,1706621337790,-15210.46128256,0.00026628,2]
[313015253,1706621337814,-225.05965699,0.00026629,2]
[313015254,1706621337835,-73.84179523,0.00026629,2]
[313015358,1706621438554,-5216.01545379,0.0002636,2]
[313015361,1706621438565,-13757.01511676,0.00026361,2]
[313015419,1706621442712,-5170.33789299,0.00026361,2]
[313015420,1706621442721,-806.43764978,0.00026363,2]
[313015421,1706621442735,-2565.80034375,0.00026363,2]
[313015422,1706621442745,-250.0,0.00026615,2]
[313015423,1706621442754,-611.23585915,0.00026629,2]
[313015424,1706621442763,-1650.19411677,0.00026629,2]
[313015425,1706621442773,-1111.02241216,0.00026629,2]
[313015426,1706621442782,-155.0294556,0.00026629,2]
[313015427,1706621442791,-155.0294556,0.00026629,2]
[313015428,1706621442801,-19.7993557,0.00026629,2]
[313015429,1706621442815,-260.31922437,0.00026629,2]
[313015430,1706621442824,-343.55950094,0.00026629,2]
[313015431,1706621442833,-155.0294556,0.00026629,2]
[313015432,1706621442844,-621.56241516,0.00026629,2]
[313015433,1706621442853,-765.0593475,0.00026629,2]
[313015434,1706621442862,-761.71762625,0.00026717,5]
[313015435,1706621442871,-979.26914291,0.00026718,2]
[313015436,1706621442882,-2276.2235604,0.00026816,2]
[313015437,1706621442891,-197.64690548,0.000269,2]
[313015438,1706621442901,-1794.92731818,0.00028273,2]
[313015439,1706621442915,-62.02645461,0.00028273,2]
[313015440,1706621442924,-155.0294556,0.00028274,2]
[313015441,1706621442934,-165.99896596,0.00028274,2]
[313015442,1706621442943,-1485.86518994,0.00028275,2]
[313015443,1706621442952,-4054.48207252,0.00028278,2]
[313015444,1706621442969,-9025.70307988,0.00028278,2]
[313015445,1706621442978,-2775.46,0.00028438,3]
[313015446,1706621442987,-2312.89,0.00028438,3]
[313015447,1706621442997,-14757.0907483,0.00028449,2]
[313015448,1706621443009,-7867.32990358,0.00028449,2]
[313015449,1706621443023,-2275.57934812,0.00028449,2]
[313015450,1706621443032,-155.0,0.00028698,2]
[313015451,1706621443042,-2000.0,0.00028909,2]
[313015452,1706621443051,-2000.0,0.00028909,2]
[313015453,1706621443060,-200.0,0.00028996,15]
[313015454,1706621443069,-944.33128105,0.00029,2]
[313015455,1706621443079,-1927.4,0.00029083,3]
[313015456,1706621443088,-1934.46924266,0.00029092,2]
[313015457,1706621443098,-3487.92723672,0.00029093,2]
[313015458,1706621443108,-780.35887145,0.0002939,2]
[313015459,1706621443117,-206.16562125,0.00029497,2]
[313015460,1706621443126,-17170.66227946,0.00029597,4]
[313015461,1706621443136,-151.24655689,0.00029598,2]
[313015482,1706621443848,-518.24864605,0.00029598,2]
[313015484,1706621443857,-326.98415915,0.00029598,2]
[313015487,1706621443870,-882.60986901,0.00029598,2]
[313015489,1706621443879,-305.0682338,0.00029598,2]
[313015491,1706621443889,-425.78813284,0.00029598,2]
[313015493,1706621443901,-1363.97751882,0.00029598,2]
[313015495,1706621443910,-1397.1010222,0.00029598,2]
[313015497,1706621443919,-199.579505,0.000296,2]
[313015499,1706621443929,-199.5795051,0.000296,2]
[313015502,1706621443938,-199.5795051,0.000296,2]
[313015504,1706621443948,-199.5795051,0.000296,2]
[313015506,1706621443957,-362.19649539,0.000296,2]
[313015515,1706621448551,-1.17824864,0.000296,2]
[313015517,1706621532373,-1115.4,0.00022253,3]
[313015518,1706621532394,-329.99464709,0.00022258,2]
[313015519,1706621532414,-1295.2641633,0.00022259,2]
[313015520,1706621532433,-556.20773545,0.0002226,2]
[313015521,1706621532457,-494.9489016,0.0002226,2]
[313015522,1706621532476,-2041.75712479,0.00022261,2]
[313015523,1706621532497,-20899.05725792,0.00022261,2]
[313015524,1706621532518,-904.83318342,0.00022262,2]
[313015525,1706621532538,-1996.16717164,0.00022262,2]
[313015526,1706621532559,-1581.46279222,0.00022262,2]
[313015527,1706621532581,-37009.8984698,0.00022262,2]
[313015528,1706621532604,-7970.65505241,0.00022263,2]
[313015529,1706621532625,-83813.3038538,0.00022263,2]
[313015530,1706621532646,-4819.97769138,0.00022264,2]
[313015531,1706621532666,-198.07195518,0.00022265,2]
[313015532,1706621586134,166.6666676,0.00021918,2]
[313015534,1706621617753,-453.46449264,0.00022254,2]
[313015535,1706621617774,-15639.60324417,0.00022255,2]
[313015536,1706621617795,-155.0294556,0.00022255,2]
[313015537,1706621617817,-2713.90126665,0.00022256,5]
[313015538,1706621617836,-161.25377487,0.00022256,2]
[313015539,1706621617856,-1027.59488469,0.00022257,2]
[313015540,1706621617877,-19726.57954333,0.00022259,2]
[313015541,1706621617899,-155.0294556,0.00022265,2]
[313015542,1706621617919,-621.56241516,0.00022265,2]
[313015543,1706621617940,-1111.02241216,0.00022265,2]
[313015544,1706621617961,-941.95905513,0.00022265,2]
[313015545,1706621631239,170.00941876,0.00021918,2]
[313015546,1706621634399,234.70979998,0.00021918,2]
[313015547,1706621635076,1650.19411677,0.00021918,2]
[313015548,1706621636912,621.56241516,0.00021918,2]
[313015549,1706621638187,155.0294556,0.00021918,2]
[313015550,1706621641111,5000.0,0.000222,2]
[313015551,1706621650027,5000.0,0.000222,2]
[313015552,1706621652177,229.02996725,0.00021918,2]
[313015553,1706621654837,621.56241516,0.00021918,2]
[313015554,1706621655109,1650.19411677,0.00021918,2]
[313015555,1706621658128,2314.44918073,0.000222,2]
[313015556,1706621670842,249.83142042,0.00021918,2]
[313015557,1706621671081,732.35779404,0.00021918,2]
[313015558,1706621686923,-639.41153281,0.0002225,2]
[313015559,1706621686945,-302.3601781,0.0002225,2]
[313015560,1706621686966,-167.24069426,0.00022251,2]
[313015561,1706621686987,-262.71950685,0.00022252,2]
[313015562,1706621687014,-1171.26808798,0.00022253,2]
[313015563,1706621753119,-5216.01545379,0.00022248,2]
[313015564,1706621753140,-318.6160575,0.00022248,2]
[313015565,1706621753160,-762.0429544,0.00022249,5]
[313015566,1706621753179,-620.23996484,0.00022263,2]
[313015567,1706621753200,-379.08556947,0.00022264,2]
[313015570,1706621823306,-155.0294556,0.00022247,2]
[313015571,1706621823327,-3750.33849076,0.00022261,2]
[313015572,1706621823347,-1485.86518994,0.00022262,2]
[313015573,1706621823368,-1369.7668637,0.00022263,2]
[313015574,1706621826211,4774.94034301,0.000222,2]
[313015577,1706621889018,-329.99464709,0.00022257,2]
[313015578,1706621889040,-2041.75712479,0.00022258,2]
[313015579,1706621889061,-1295.2641633,0.00022258,2]
[313015580,1706621889083,-500.0,0.00022259,2]
[313015581,1706621889103,-5992.98406482,0.00022259,2]
[313015582,1706621918813,847.7079481,0.00021705,2]
[313015583,1706621940530,10332.4502932,0.00021482,2]
[313015584,1706621940560,10000.0,0.00021482,2]
[313015585,1706621957870,-620.23996484,0.00021481,2]
[313015586,1706621957892,-1485.86518994,0.00021481,2]
[313015587,1706621957915,-1856.95377279,0.00021481,2]
[313015588,1706621957937,-494.9489016,0.00021481,2]
[313015589,1706621957962,-4567.5497068,0.00021482,2]
[313015590,1706621957988,-161.25377487,0.00022254,2]
[313015591,1706621958017,-262.71950685,0.00022254,2]
[313015592,1706621958042,-639.41153281,0.00022254,2]
[313015593,1706621958066,-5121.0576495,0.00022254,2]
[313015596,1706622202505,819.279536,0.00020077,2]
[313015599,1706622303381,1583.8500325,0.00019397,2]
[313015600,1706622318524,762.0429544,0.00020145,5]
[313015602,1706622364979,24900.0,0.00019185,2]
[313015603,1706622389198,380.1947371,0.00019177,2]
[313015604,1706622412533,250.0,0.00019163,2]
[313015605,1706622419769,385.19322621,0.00019185,20]
[313015606,1706622421323,2149.9397613,0.00019169,2]
[313015609,1706622431601,19916.7359331,0.00019169,2]
[313015610,1706622431628,15713.2405102,0.00019169,2]
[313015613,1706622448924,621.08630561,0.00019185,2]
[313015615,1706622606853,24148.5586258,0.00019132,2]
[313015616,1706622608782,398.1668556,0.00019132,2]
[313015680,1706622634227,-1856.95377279,0.0002012,2]
[313015682,1706622634237,-639.41153281,0.0002012,2]
[313015684,1706622634246,-620.23996484,0.00020121,2]
[313015686,1706622634255,-161.25377487,0.00020122,2]
[313015688,1706622634264,-171.16808954,0.00020122,2]
[313015690,1706622634273,-318.6160575,0.00020122,2]
[313015692,1706622634283,-155.0294556,0.00020122,2]
[313015695,1706622634292,-21712.69652796,0.00020122,2]
[313015698,1706622634301,-262.71950685,0.00020123,2]
[313015701,1706622634310,-5216.01545379,0.00020123,2]
[313015704,1706622634319,-318.6160575,0.00020125,2]
[313015707,1706622634328,-318.6160575,0.00020125,2]
[313015710,1706622634337,-18927.35300975,0.00020126,2]
[313015712,1706622634346,-169.55336599,0.00020147,2]
[313015713,1706622634354,-784.39500808,0.00020819,5]
[313015714,1706622634363,-2005.37316766,0.00021249,2]
[313015717,1706622634373,-200.0,0.00022138,7]
[313015719,1706622634382,-17142.93072205,0.00022256,2]
[313015721,1706622634391,-864.88498498,0.00022264,2]
[313015723,1706622634400,-1564.4053791,0.00022265,2]
[313015724,1706622634409,-495.5592829,0.00023132,2]
[313015726,1706622634418,-15604.4614637,0.00023132,2]
[313015728,1706622634428,-1584.57551026,0.00023132,2]
[313015731,1706622634439,-6884.61411412,0.00023133,2]
[313015733,1706622634448,-169.676774,0.00023155,2]
[313015735,1706622634457,-280.0,0.00024351,7]
[313015736,1706622634466,-4730.93218311,0.00025,2]
[313015737,1706622634475,-662.31744769,0.00026349,2]
[313015738,1706622634484,-228.50257596,0.00026629,2]
[313015739,1706622634493,-156.12328954,0.00026629,2]
[313015740,1706622634503,-342.63412088,0.00026629,2]
[313015741,1706622634511,-978.95259375,0.00026717,2]
[313015742,1706622634520,-391.0,0.00026786,15]
[313015743,1706622634530,-851.21071323,0.00028229,2]
[313015744,1706622634539,-155.0,0.00028685,2]
[313015745,1706622634548,-200.7577538,0.00028878,2]
[313015746,1706622634557,-199.5795051,0.00028878,2]
[313015747,1706622634566,-199.5795051,0.00028878,2]
[313015748,1706622634575,-199.5795051,0.00028878,2]
[313015749,1706622634585,-1934.46924266,0.00029086,2]
[313015750,1706622634594,-3490.39781052,0.00029087,2]
[313015751,1706622634603,-3326.84002864,0.00029384,2]
[313015752,1706622634612,-151.02718489,0.00029406,7]
[313015753,1706622634621,-200.0,0.00029465,15]
[313015754,1706622634630,-348.0,0.00029465,15]
[313015755,1706622634640,-1420.27,0.00029573,3]
[313015756,1706622634649,-1183.56,0.00029573,3]
[313015757,1706622634658,-155.29816914,0.00029582,2]
[313015758,1706622634667,-3973.903518,0.00029583,2]
[313015759,1706622634677,-3973.903518,0.00029583,2]
[313015760,1706622634687,-287.482269,0.00029583,2]
[313015761,1706622634696,-151.0,0.00029583,2]
[313015762,1706622634706,-188.0,0.00029583,2]
[313015763,1706622634715,-53470.6431645,0.00029583,2]
[313015764,1706622634724,-765.0593475,0.000296,2]
[313015765,1706622634733,-280.11858007,0.000296,2]
[313015766,1706622634743,-300.0,0.000296,2]
[313015767,1706622634752,-342.49437756,0.00029681,2]
[313015768,1706622634765,-1294.5477549,0.00029681,2]
[313015769,1706622634774,-2040.50242111,0.00029681,2]
[313015770,1706622634783,-500.0,0.00029681,2]
[313015771,1706622634792,-167.98963073,0.00029682,2]
[313015772,1706622634802,-155.39483468,0.00029682,2]
[313015773,1706622634811,-2392.90101148,0.00029683,2]
[313015774,1706622634820,-151.0,0.00029683,2]
[313015775,1706622634829,-151.0,0.00029683,2]
[313015776,1706622634838,-151.0,0.00029683,2]
[313015777,1706622634850,-3973.903518,0.00029683,2]
[313015778,1706622634859,-3973.903518,0.00029683,2]
[313015779,1706622634868,-151.0,0.00029683,2]
[313015780,1706622634877,-527.38076305,0.00029683,2]
[313015781,1706622634886,-2805.79209286,0.00029683,5]
[313015782,1706622634895,-1027.23252462,0.00029683,2]
[313015783,1706622634905,-19720.32843806,0.00029683,2]
[313015784,1706622634914,-302.2469024,0.00029683,2]
[313015785,1706622634923,-151.0,0.00029684,2]
[313015786,1706622634932,-151.0,0.00029684,2]
[313015787,1706622634941,-151.0,0.00029684,2]
[313015788,1706622634950,-2292.40162656,0.00029684,2]
[313015789,1706622634960,-153.096833,0.00029685,2]
[313015790,1706622634969,-151.0,0.00029685,2]
[313015791,1706622634978,-151.0,0.00029685,2]
[313015792,1706622634987,-3973.903518,0.00029685,2]
[313015793,1706622634996,-3973.903518,0.00029685,2]
[313015794,1706622635005,-3973.903518,0.00029685,2]
[313015795,1706622635015,-3973.903518,0.00029685,2]
[313015796,1706622635024,-151.0,0.00029685,2]
[313015797,1706622635033,-151.0,0.00029685,2]
[313015798,1706622635042,-155.2053963,0.00029685,2]
[313015799,1706622635052,-243.38918816,0.00029685,2]
[313015800,1706622635061,-942.4215444,0.00029685,2]
[313015801,1706622635070,-1580.46019132,0.00029685,2]
[313015802,1706622635079,-4930.5120914,0.00029685,2]
[313015803,1706622635089,-1994.8791332,0.00029685,2]
[313015804,1706622635098,-42632.10712668,0.00029685,2]
[313015805,1706622635111,-2991.1895775,0.00029685,2]
[313015820,1706622637975,-1485.86518994,0.00020119,2]
[313015822,1706622637985,-511.33341243,0.00029685,2]
[313015836,1706622641029,-986.3,0.00029676,3]
[313015837,1706622641039,-3723.62860691,0.00029685,2]
[313015838,1706622642140,-13827.02233425,0.00029685,2]
[313015858,1706622642954,-1557.52705378,0.00029685,2]
[313015861,1706622645906,-15203.63126349,0.00029387,2]
[313015862,1706622645916,-13481.54759347,0.00029685,2]
[313015863,1706622645925,-346.04207608,0.00029685,2]
[313015864,1706622645934,-904.27081356,0.00029685,2]
[313015865,1706622645944,-36990.12614126,0.00029686,2]
[313015866,1706622645955,-20885.80394062,0.00029686,2]
[313015867,1706622645965,-151.0,0.00029686,2]
[313015869,1706622645974,-151.0,0.00029686,2]
[313015871,1706622645983,-151.0,0.00029686,2]
[313015873,1706622645992,-151.0,0.00029686,2]
[313015874,1706622646001,-3973.903518,0.00029686,2]
[313015875,1706622646011,-3973.903518,0.00029686,2]
[313015876,1706622646020,-3973.903518,0.00029686,2]
[313015877,1706622646030,-3973.903518,0.00029686,2]
[313015878,1706622646039,-151.0,0.00029686,2]
[313015879,1706622646048,-151.0,0.00029686,2]
[313015880,1706622646057,-151.0,0.00029687,2]
[313015881,1706622646066,-151.0,0.00029687,2]
[313015882,1706622646075,-3973.903518,0.00029687,2]
[313015883,1706622646084,-3973.903518,0.00029687,2]
[313015884,1706622646093,-151.0,0.00029687,2]
[313015885,1706622646102,-214.44424037,0.00029687,2]
[313015886,1706622646111,-296.22655429,0.00029687,2]
[313015887,1706622646120,-15255.33803003,0.00029687,2]
[313015888,1706622646130,-303.92838354,0.00029687,2]
[313015889,1706622646139,-155.21357943,0.00029688,2]
[313015890,1706622646148,-151.0,0.00029689,2]
[313015891,1706622646156,-282.0,0.00029689,2]
[313015892,1706622646165,-261.28551816,0.00029698,2]
[313015893,1706622646175,-199.40706309,0.00029698,2]
[313015894,1706622646183,-175.37542985,0.00029698,2]
[313015895,1706622646193,-608.61746145,0.00029698,2]
[313015896,1706622646202,-155.1304677,0.00029698,2]
[313015897,1706622646212,-166.8449914,0.00029698,2]
[313015898,1706622646221,-181.15956934,0.00029698,2]
[313015899,1706622646231,-155.46673738,0.00029698,2]
[313015900,1706622646241,-272.32980709,0.000297,3]
[313015901,1706622646250,-157.3634783,0.000297,2]
[313015902,1706622646259,-18363.90690369,0.000297,7]
[313015903,1706622646269,-338.72404559,0.000297,2]
[313015904,1706622646278,-151.0,0.000297,2]
[313015905,1706622646287,-3973.903518,0.000297,2]
[313015906,1706622646296,-3973.903518,0.000297,2]
[313015907,1706622646304,-33233.16498743,0.000297,2]
[313015908,1706622646313,-151.0,0.000297,2]
[313015909,1706622646322,-151.0,0.000297,2]
[313015910,1706622646332,-1482.21607815,0.00029799,2]
[313015911,1706622646341,-380.07693887,0.00029799,2]
[313015912,1706622646350,-500.0,0.00029799,2]
[313015913,1706622646360,-500.0,0.00029799,2]
[313015914,1706622646375,-500.0,0.00029799,2]
[313015915,1706622646388,-500.0,0.00029799,2]
[313015916,1706622646402,-500.0,0.00029799,2]
[313015917,1706622646413,-500.0,0.00029799,2]
[313015918,1706622646425,-500.0,0.00029799,2]
[313015919,1706622646438,-500.0,0.00029799,2]
[313015920,1706622646454,-500.0,0.00029799,2]
[313015921,1706622646467,-500.0,0.00029799,2]
[313015922,1706622646479,-199.61434777,0.00029799,2]
[313015923,1706622646490,-500.0,0.00029799,2]
[313015924,1706622646501,-500.0,0.00029799,2]
[313015925,1706622646514,-500.0,0.00029799,2]
[313015926,1706622646528,-500.0,0.00029799,2]
[313015927,1706622646541,-500.0,0.00029799,2]
[313015928,1706622646553,-500.0,0.00029799,2]
[313015929,1706622646566,-500.0,0.00029799,2]
[313015930,1706622646578,-641.78749974,0.00029799,2]
[313015931,1706622646588,-619.22118688,0.00029799,2]
[313015932,1706622646602,-500.0,0.00029799,2]
[313015933,1706622646615,-500.0,0.00029799,2]
[313015934,1706622646628,-500.0,0.00029799,2]
[313015935,1706622646640,-500.0,0.00029799,2]
[313015936,1706622646651,-500.0,0.00029799,2]
[313015937,1706622646663,-506.24517084,0.00029799,2]
[313015938,1706622646675,-500.0,0.00029799,2]
[313015939,1706622646688,-178.06966903,0.00029799,2]
[313015940,1706622646703,-500.0,0.00029799,2]
[313015941,1706622646716,-500.0,0.00029799,2]
[313015942,1706622646729,-500.0,0.00029799,2]
[313015943,1706622646743,-500.0,0.00029799,2]
[313015944,1706622646754,-500.0,0.00029799,2]
[313015945,1706622646764,-163.95365386,0.00029799,2]
[313015946,1706622646776,-500.0,0.00029799,2]
[313015947,1706622646787,-500.0,0.00029799,2]
[313015948,1706622646799,-500.0,0.00029799,2]
[313015949,1706622646811,-500.0,0.00029799,2]
[313015950,1706622646823,-500.0,0.00029799,2]
[313015951,1706622646835,-500.0,0.00029799,2]
[313015952,1706622646850,-500.0,0.00029799,2]
[313015953,1706622646862,-500.0,0.00029799,2]
[313015954,1706622646874,-500.0,0.00029799,2]
[313015955,1706622646884,-151.0,0.00029799,2]
[313015956,1706622646895,-387.93669721,0.00029799,2]
[313015957,1706622646905,-3973.903518,0.00029799,2]
[313015958,1706622646917,-3973.903518,0.00029799,2]
[313015959,1706622646930,-151.0,0.00029799,2]
[313015960,1706622646941,-479.93063435,0.00029799,2]
[313015961,1706622646952,-544.65961418,0.000298,3]
[313015962,1706622646963,-100703.18616531,0.000298,3]
[313015963,1706622647586,-0.61244508,0.000298,3]
[313015974,1706622857429,155.00774939,0.000176,2]
[313015976,1706622925243,1289.67593275,0.000176,2]
[313015977,1706622935457,1110.69036683,0.000176,2]
[313015978,1706622943237,1289.67593275,0.000176,2]
[313015979,1706622951435,1110.69036683,0.000176,2]
[313015980,1706622959239,591.96512963,0.000176,2]
[313015981,1706622971453,1109.52328082,0.000176,2]
[313015984,1706623067985,155.19178344,0.000176,2]